Cogmind - Beta 11 X8 @@@ ROGUE MODE // 2021.10.31 @ 11:51:58 Player: Buffy Result: Destroyed by D-53 Grenadier with Mini Grenade Launcher Performance ------------- Evolutions (0) 0 Regions Visited (4) 800 Robots Destroyed (17) 85 Value Destroyed (333) 333 Prototype IDs (25) 500 Alien Tech Used (0) 0 Bonus (300) 300 TOTAL SCORE: 2018 Bonus ------- Aligned with FarCom 300 Cogmind --------- Core Integrity 0/250 Matter 275/300 Energy 69/100 System Corruption 0% Temperature Cool (0) Movement Walking (120) Location -9/Mines Parts ------- > --- POWER (1) -------- (None) > --- PROPULSION (2) --- Aluminum Leg Aluminum Leg > --- UTILITY (2) ------ Large Storage Unit > --- WEAPON (2) ------- (None) > --- INVENTORY (15) --- Heat Sink Medium Storage Unit High-capacity Storage Unit High-capacity Matter Pod (200) Sensor Array Signal Interpreter Modified TNC Small Laser Assault Rifle Assault Rifle Grenade Launcher Mining Laser Peak State ------------ > --- POWER ------------ Light Ion Engine > --- PROPULSION ------- Light Treads Light Treads > --- UTILITY ---------- Large Storage Unit Improved Terrain Scanner > --- WEAPON ----------- Particle Gun Assault Rifle > --- INVENTORY -------- Aluminum Leg Aluminum Leg Aluminum Leg Heat Sink Medium Storage Unit High-capacity Storage Unit High-capacity Matter Pod Sensor Array Signal Interpreter Modified TNC Small Laser Assault Rifle Assault Rifle Grenade Launcher Mining Laser [Rating: 12] Favorites ----------- Power Light Ion Engine Engine Light Ion Engine Propulsion Light Treads Treads Light Treads Leg Aluminum Leg Utility Large Storage Unit Device Improved Terrain Scanner Storage Large Storage Unit Weapon Assault Rifle Energy Gun Particle Gun Ballistic Gun Assault Rifle Launcher Grenade Launcher Special Weapon Mining Laser Build | -11 -10 -10 -10 -9 ------- Run | Scr Mat Min Exi Min Slots Evolved . | . . . . . Power . | . . . . . Propulsion . | . . . . . Utility . | . . . . . Weapon . | . . . . . Parts Attached 27 | 1 11 6 4 5 Power 1 | . 1 . . . Engine 1 | . 1 . . . Core . | . . . . . Reactor . | . . . . . Propulsion 6 | . 2 1 . 3 Treads 3 | . 2 1 . . Leg 3 | . . . . 3 Wheel . | . . . . . Hover . | . . . . . Flight . | . . . . . Utility 7 | 1 1 1 2 2 Device 5 | 1 . 1 1 2 Storage 2 | . 1 . 1 . Processor . | . . . . . Hackware . | . . . . . Protection . | . . . . . Artifact . | . . . . . Weapon 13 | . 7 4 2 . Energy Gun 6 | . 3 2 1 . Energy Cannon . | . . . . . Ballistic Gun 2 | . 1 . 1 . Ballistic Cannon . | . . . . . Launcher 2 | . . 2 . . Special Weapon 3 | . 3 . . . Impact Weapon . | . . . . . Slashing Weapon . | . . . . . Piercing Weapon . | . . . . . Special Melee Weapon . | . . . . . Unidentified Prototypes . | . . . . . Parts Lost 10 | . 2 1 . 7 Power 2 | . 1 . . 1 Propulsion 4 | . . 1 . 3 Utility 1 | . . . . 1 Weapon 3 | . 1 . . 2 Highest Loss Streak 7 | . 1 1 . 7 Average Slot Usage (%) 99 | . 99 100 100 97 Engine 13 | . 13 14 14 13 Treads 25 | . 21 28 28 27 Leg 2 | . 6 . . . Device 13 | . 14 14 14 13 Storage 14 | . 14 14 14 14 Energy Gun 10 | . 6 10 14 13 Ballistic Gun 15 | . 19 14 14 13 Naked Turns . | . . . . . Heaviest Build 29 | 12 29 29 29 29 Greatest Support 40 | 20 40 40 40 40 Greatest Overweight (x) 1 | . . . . 1 Average Overweight (x) . | . . . . . Largest Inventory Capacity 15 | 8 15 15 15 15 Average Capacity 13 | 8 12 15 15 15 Most Carried 15 | 5 15 15 15 15 Average Carried 12 | 4 9 14 14 14 Final Capacity 15 | 8 15 15 15 15 Final Carried 15 | 5 15 15 15 12 Class Distribution -------------------- 88% | Mutant 11% | Skirmisher Dominant Class ---------------- Mutant | -10/Materials Mutant | -10/Mines Mutant | -10/Exiles Skirmisher | -9/Mines Resources | -11 -10 -10 -10 -9 ----------- Run | Scr Mat Min Exi Min Matter Collected 725 | 240 307 148 30 . Remotely . | . . . . . Salvage Created 595 | 116 307 172 . . Parts 33 | 5 13 15 . . Haulers Intercepted . | . . . . . Recyclers Shooed 1 | . . 1 . . Parts Field Recycled . | . . . . . Retrieved Matter . | . . . . . Parts Self-Destructed . | . . . . . Prevented . | . . . . . Kills | -11 -10 -10 -10 -9 ------- Run | Scr Mat Min Exi Min Combat Hostiles Destroyed 12 | . 7 5 . . Guns 10 | . 7 3 . . AOE 2 | . . 2 . . Classes Destroyed 5 | 2 2 1 . . Builder 1 | . . 1 . . Tunneler 1 | 1 . . . . Recycler 3 | 1 1 1 . . Swarmer 6 | . 3 3 . . Grunt 6 | . 4 2 . . Best Kill Streak 5 | 1 4 5 . . Combat Bots Only 4 | . 4 3 . . Max Kills in Single Turn 2 | 1 1 2 . . Gunslinging . | . . . . . Exploded 1 | . . 1 . . Melee . | . . . . . Uniques/NPCs Destroyed . | . . . . . Combat | -11 -10 -10 -10 -9 -------- Run | Scr Mat Min Exi Min Damage Taken 1311 | . 437 306 . 568 Core 266 | . 37 23 . 206 Absorbed by Shields . | . . . . . Core Remaining (%) 100 | 100 . . . . Volleys Fired 61 | 10 35 16 . . Largest 2 | 2 2 2 . . Hottest 120 | 60 120 85 . . Shots Fired 118 | 20 68 30 . . Gun 112 | 20 64 28 . . Cannon . | . . . . . Launcher 2 | . . 2 . . Special 4 | . 4 . . . Kinetic 71 | 10 47 14 . . Thermal 31 | 10 7 14 . . Explosive 2 | . . 2 . . Electromagnetic 14 | . 14 . . . Robot Hit Streak 13 | 6 6 13 . . Robot Miss Streak 3 | 1 3 2 . . Penetration Max . | . . . . . Secondary Targets . | . . . . . Shots Hit Robots 74 | 15 37 22 . . Core Hits 27 | 3 14 10 . . Critical Kills . | . . . . . Critical Parts Destroyed . | . . . . . Critical Strikes 1 | . 1 . . . Burn 1 | . 1 . . . Melee Attacks . | . . . . . Impact . | . . . . . Slashing . | . . . . . Piercing . | . . . . . Sneak Attacks . | . . . . . Combat Hostiles . | . . . . . Follow-up Attacks . | . . . . . Damage Inflicted 1212 | 176 500 536 . . Guns 954 | 176 496 282 . . Cannons . | . . . . . Explosions 254 | . . 254 . . Melee . | . . . . . Ramming 4 | . 4 . . . Kinetic 618 | 100 350 168 . . Thermal 218 | 76 28 114 . . Explosive 254 | . . 254 . . Electromagnetic 118 | . 118 . . . Impact . | . . . . . Slashing . | . . . . . Piercing . | . . . . . Highest Corruption . | . . . . . Average Corruption . | . . . . . Corruption Purged . | . . . . . Overload Shots . | . . . . . Overflow Damage 27 | . . 27 . . Projectiles . | . . . . . Explosions 27 | . . 27 . . Melee . | . . . . . Knockbacks . | . . . . . Impact . | . . . . . Kinetic . | . . . . . Secondary . | . . . . . Self-Inflicted Damage . | . . . . . Shots . | . . . . . Rammed 1 | . 1 . . . Targets Rammed 1 | . 1 . . . Kicked . | . . . . . Crushed . | . . . . . Highest Temperature 190 | . 72 190 . . Average Temperature 47 | . 20 116 . . Received Heat Transfer 408 | . 237 165 . 6 Siege Activations . | . . . . . Robots Corrupted . | . . . . . Combat Hostiles . | . . . . . Parts Fried . | . . . . . Impact Corruptions . | . . . . . Robots Melted . | . . . . . Combat Hostiles . | . . . . . Parts Melted . | . . . . . Heat Transferred 595 | 175 148 272 . . Parts Sabotaged . | . . . . . Parts Stolen . | . . . . . Parts Stripped . | . . . . . Power Chain Reactions . | . . . . . Missiles Intercepted . | . . . . . Alert | -11 -10 -10 -10 -9 ------- Run | Scr Mat Min Exi Min Peak Influence 167 | 10 167 130 . . Initial 6 | . 6 . . . Average 34 | 6 52 28 . . Maximum Alert Level . | . . . . . Low Security (%) 100 | 100 100 100 . 100 Level 1 . | . . . . . Level 2 . | . . . . . Level 3 . | . . . . . Level 4 . | . . . . . Level 5 . | . . . . . High Security . | . . . . . Max Security . | . . . . . Squads Dispatched 2 | . 2 . . . Investigation . | . . . . . Extermination . | . . . . . Reinforcement 2 | . 2 . . . Assault . | . . . . . Garrison . | . . . . . Intercept . | . . . . . Construction Impeded . | . . . . . Haulers Reinforced . | . . . . . Active Scanning Responses . | . . . . . Cargo Convoy Interrupts . | . . . . . Stealth | -11 -10 -10 -10 -9 --------- Run | Scr Mat Min Exi Min Distress Signals . | . . . . . Communications Jammed . | . . . . . Distress Signals . | . . . . . Times Spotted 25 | . 13 5 . 7 Peak Tracking Total 4 | . 4 3 . 4 Tactical Retreats 1 | . 1 . . . Traps | -11 -10 -10 -10 -9 ------- Run | Scr Mat Min Exi Min Traps Triggered . | . . . . . Indirectly . | . . . . . Trap Hack Attempts . | . . . . . Triggered . | . . . . . Disarmed . | . . . . . Reprogrammed . | . . . . . Reused . | . . . . . Traps Extracted . | . . . . . Installed . | . . . . . Triggered . | . . . . . Machines | -11 -10 -10 -10 -9 ---------- Run | Scr Mat Min Exi Min Machines Disabled . | . . . . . Max in Single Turn . | . . . . . Machines Sabotaged . | . . . . . Garrisons Compromised . | . . . . . Overloaded Fab Kills . | . . . . . Hacking | -11 -10 -10 -10 -9 --------- Run | Scr Mat Min Exi Min Machines Accessed 8 | . 6 . 2 . Terminals 4 | . 4 . . . Fabricators . | . . . . . Repair Stations . | . . . . . Recycling Units 2 | . 2 . . . Scanalyzers . | . . . . . Garrison Access . | . . . . . Total Hacks 19 | . 17 . 2 . Successful 14 | . 12 . 2 . Failed 5 | . 5 . . . Catastrophic 1 | . 1 . . . Database Lockouts . | . . . . . Manual 7 | . 6 . 1 . Terminals 11 | . 11 . . . Fabricators . | . . . . . Repair Stations . | . . . . . Recycling Units 6 | . 6 . . . Scanalyzers . | . . . . . Garrison Access . | . . . . . Terminal Hacks 7 | . 5 . 2 . Record 1 | . . . 1 . Robot Analysis 2 | . 2 . . . Prototype ID Bank 1 | . 1 . . . Transport Status 1 | . 1 . . . Hauler Manifests 1 | . 1 . . . EX-Prototype ID Bank 1 | . . . 1 . Fabricator Hacks . | . . . . . Repair Station Hacks . | . . . . . Recycling Unit Hacks 6 | . 6 . . . Process 1 | . 1 . . . Report Inventory 4 | . 4 . . . Retrieve Components 1 | . 1 . . . Scanalyzer . | . . . . . Garrison Access Hacks . | . . . . . Unauthorized Hacks 1 | . 1 . . . Terminals 1 | . 1 . . . Track 1 | . 1 . . . Fabricators . | . . . . . Repair Stations . | . . . . . Recycling Units . | . . . . . Scanalyzers . | . . . . . Garrison Access . | . . . . . Data Cores Recovered . | . . . . . Used . | . . . . . Hacking Detections 5 | . 5 . . . Full Trace Events . | . . . . . Feedback Events . | . . . . . Feedback Blocked . | . . . . . Robot Schematics Acquired . | . . . . . Robots Built . | . . . . . Authchips . | . . . . . Time . | . . . . . Total Robot Build Rating . | . . . . . Part Schematics Acquired . | . . . . . Parts Built . | . . . . . Authchips . | . . . . . Time . | . . . . . Total Part Build Rating . | . . . . . Parts Repaired . | . . . . . Time . | . . . . . Parts Recycled . | . . . . . Recycled Matter 5 | . 5 . . . Retrieved Matter . | . . . . . Retrieved Components 1 | . 1 . . . Parts Scanalyzed . | . . . . . Part Schematics Acquired . | . . . . . Parts Damaged . | . . . . . Bothacking | -11 -10 -10 -10 -9 ------------ Run | Scr Mat Min Exi Min Used RIF Installer . | . . . . . Robots Hacked . | . . . . . Non-combat . | . . . . . Combat . | . . . . . Robot Hacks Applied . | . . . . . Relay Couplers Released . | . . . . . Robots Rewired . | . . . . . Allies Hacked . | . . . . . Hacks Repelled . | . . . . . Allies | -11 -10 -10 -10 -9 -------- Run | Scr Mat Min Exi Min Total Allies . | . . . . . Largest Group . | . . . . . Highest-Rated Group . | . . . . . Highest-Rated Ally . | . . . . . Total Orders . | . . . . . Ally Attacks . | . . . . . Total Damage . | . . . . . Kills . | . . . . . Allies Corrupted . | . . . . . Allies Melted . | . . . . . Intel | -11 -10 -10 -10 -9 ------- Run | Scr Mat Min Exi Min Robot Analysis Total 2 | . 2 . . . Derelict Logs Recovered 1 | . . . . 1 Drone Launches . | . . . . . Drone Recoveries . | . . . . . Exploration | -11 -10 -10 -10 -9 ------------- Run | Scr Mat Min Exi Min Turns Passed 2405 | 84 808 457 770 286 Spaces Moved 1343 | 33 418 246 475 171 Core . | . . . . . Treads 1168 | . 279 246 475 168 Legs 175 | 33 139 . . 3 Wheels . | . . . . . Hover . | . . . . . Flight . | . . . . . Fastest Speed 120 | 120 120 160 160 160 Average Speed 155 | 120 146 160 160 160 Slowest Speed 240 | 120 160 160 160 240 Overloaded Moves . | . . . . . Propulsion Burnouts . | . . . . . Robots Hopped . | . . . . . Cave-ins Triggered . | . . . . . Exploration Rate (%) 47 | 4 55 64 72 43 Regions Visited 4 Branch Regions 3 Pre-discovered Areas 1 | . . . 1 . Known Exits Taken . | . . . . . Unknown Exits Taken 4 | 1 1 1 1 . Scrap Searched . | . . . . . Spaces Dug 4 | . 4 . . . Terrain Destroyed 13 | . 4 9 . . Melee . | . . . . . Projectile 4 | . 4 . . . AOE 9 | . . 9 . . Terrain Rammed . | . . . . . Walls Destroyed . | . . . . . Machines Disabled . | . . . . . Actions | -11 -10 -10 -10 -9 --------- Run | Scr Mat Min Exi Min Total 1538 | 58 534 277 487 182 Wait 76 | 11 52 9 . 4 Move 1339 | 32 417 245 474 171 Hop . | . . . . . Pick Up 23 | 2 15 1 4 1 Fast Attach . | . . . . . Attach 11 | 1 4 1 2 3 Detach . | . . . . . Swap 16 | . 7 5 2 2 Drop 11 | 2 3 . 5 1 Fire 61 | 10 35 16 . . Melee . | . . . . . Ram . | . . . . . Kick . | . . . . . Crush 1 | . 1 . . . Escape Stasis . | . . . . . Rewire . | . . . . . Trap . | . . . . . Miscellaneous . | . . . . . Route ------- -11/Scrapyard -10/Materials (discovered 2 exits: [*Mat] / [*Min]) -10/Mines (discovered 2 exits: [*Mat] / *Exi) -10/Exiles (discovered 2 exits: [*Min x2]) -9/Mines History --------- Turn | Location | Event 15 | -11/Scrapyard | Discovered new exit (range 2) 85 | -11/Scrapyard | Entered Materials 304 | -10/Materials | Build established: Mutant 349 | -10/Materials | Discovered new exit (range 7) 621 | -10/Materials | Discovered new exit (range 15) 893 | -10/Materials | Entered Mines 1256 | -10/Mines | Discovered new exit (range 16) 1342 | -10/Mines | Deemed a non-threat by the Exiles lab entrance 1342 | -10/Mines | Discovered new exit (range 5) 1350 | -10/Mines | Entered Exiles 1376 | -10/Exiles | Discovered new exit (range 15) 1402 | -10/Exiles | Met 8R-AWN 1424 | -10/Exiles | Met EX-HEX 1562 | -10/Exiles | Met EX-DEC 1591 | -10/Exiles | Learned location of Zion (-7) 1671 | -10/Exiles | Met EX-BIN 1697 | -10/Exiles | Aligned with FarCom system 1698 | -10/Exiles | Given EX-Vault access code 1735 | -10/Exiles | Opened EX-Vault 1745 | -10/Exiles | Found Modified TNC 1776 | -10/Exiles | Warned to stay clear of 0b10 Research branches 1910 | -10/Exiles | Discovered new exit (range 14) 2120 | -10/Exiles | Left Exiles lab with Modified TNC 2120 | -10/Exiles | Entered Mines 2123 | -9/Mines | Met a Derelict bent on vengeance 2160 | -9/Mines | Learned Materials security intel 2373 | -9/Mines | Assembled infested the area 2401 | -9/Mines | Core integrity fell below 50% 2405 | -9/Mines | Core integrity fell below 20% 2406 | -9/Mines | Destroyed by D-53 Grenadier with Mini Grenade Launcher Last Messages --------------- 02392_ U-05 Engineer builds a Wall. 02395_ Lgt. Treads destroyed. 02396_ as-94416 destroyed. 02396_ Lgt. Ion Engine destroyed. 02396_ Imp. Terrain Scanner destroyed. 02396_ Assault Rifle destroyed. 02396_ U-05 Engineer destroyed. 02397_ The unstable cave ceiling collapses. 02398_ as-18052 destroyed. 02400_ C-30 ARC bursts open, deploying its payload. 02400_ L-31 Rogue unfolds itself. 02400_ G-34 Mercenary unfolds itself. 02400_ Lgt. Treads destroyed. 02401_ The unstable cave ceiling collapses. 02402_ Aluminum Leg destroyed. 02404_ The unstable cave ceiling collapses. 02404_ U-05 Engineer lays Concrete. 02405_ U-05 Engineer builds a Wall. 02406_ The unstable cave ceiling collapses. 02406_ U-05 Engineer destroyed. Map ----- +----------------------------------------------------+ | ??????????????????????????????????#?# | | ?????????????????????????? ?????????## | | ????????????????????????????????????## | | ????????????????????????????????????# | | ????????????????????????????????????# | | ????????????????????????????????????## | | ?????????????????????????????????????# | | ?????????????????????????????????????# | | ?????????????????????????????????#??## | | ??????????????#?????????????????????## | | ?????????????????#?#?????#??#??????## | | ????????????????######????????#????# | | ???????????????## ###???????????# | | ????? ?????????# #####???????# | | ????#?????????## %"######### | | ???# a???###### " | | ???# ### # ### k #### ########## | | ???# dd #?# #????????##### | | ????# ##?# #????????#???? | | ??????# ##??# #????????????? | | ??????# #???# ##???????????? | | ??????# ##### ####??????#??? | | ??????# g % ????????? | | ???????# l ????????? | | ???????## ????????? | | ????????## @ """ """ ?? ??????? | | ?????????# # # """ ""????????????? | | ???????? r %! #?""" ""????????????? | | ????#??#####u* # #??? ??????????????? | | ???????????# # #####???? "?????"???????? | | ???????????# ###????????? ??????????????? | | ???????????t????????????????????????????? | | ??????????#?????????????????????????????? | | ????????????????????????????????????????? | | ????????????????????????????????????????? | | ????????????????????????????????????????? | | ????????????????????????????????????????? | | ????????????????????????????????????????? | | ????????????????????????????????????????? | | ????????????????????????????????????????? | | ????????????????????????????????????????? | | ????????????????????????????????????????? | | ????????????????????????????????????????? | | | | | | | | | | | | | | | +----------------------------------------------------+ Best States ------------- Heat Dissipation 35 Energy Generation 10 Energy Capacity 125 Matter Stores 300 Matter Capacity 300 Sight Range 16 Robot Scan Range 14 Terrain Scan Range 16 Terrain Scan Density 10 Evasion (%) 55 Recoil Reduction 2 Item Schematics ----------------- None Robot Schematics ------------------ None Fabricated ------------ Nothing Alien Tech Used ----------------- None Achievements -------------- Shopping List Challenges ------------ None Game ------ Seed RiotElectronTerrabomb Manual? 0 Play Time 00:36:55 Cumulative 2.3 hours Start 2021.10.31 @ 11:07:53 End 2021.10.31 @ 11:51:58 Sessions 1 Manual Loads 0 Difficulty Rogue Special Mode None Game No. 4 Rogue 4 Adventurer 0 Explorer 0 Win Type - Total 0 Types 0/0/0/0/0/0/0/0/0 Lore% 5 Gallery% 5 Achievement% 7 Wizard Run 0 Options --------- ASCII 0 Keyboard 0 Movement Mouse Keybinds 0 Fullscreen 1 Font 18/SmallcapsGlow Map View 76x50 Tactical HUD 1 Map Filters NONE Filters NONE Steam 0 RUN: 821072a7-a5fb-480d-8314-78071b34e7d9